[Event "Titled Tuesday Blitz March 01 Early 2022"]
[White "Dubov, Daniil"]
[Black "Mitusov, Semen"]
[WhiteFideId "24126055"]
[BlackFideId "14151049"]
[WhiteElo "2791"]
[BlackElo "2246"]
[Result "1-0"]
[Round "04"]
[TimeControl "180+1"]
[Date "2022.03.01"]
[WhiteClock "0:01:35"]
[BlackClock "0:01:53"]

1. d4 {[%clk 0:03:00]}  d5 {[%clk 0:02:59]} 2. Nf3 {[%clk 0:03:01]}  Nf6 {[%clk 0:02:59]} 3. c4 {[%clk 0:03:02]}  e6 {[%clk 0:02:59]} 4. g3 {[%clk 0:03:01]}  dxc4 {[%clk 0:02:57]} 5. Bg2 {[%clk 0:03:02]}  Bd7 {[%clk 0:02:57]} 6. O-O {[%clk 0:03:01]}  Bc6 {[%clk 0:02:57]} 7. Nbd2 {[%clk 0:03:01]}  a6 {[%clk 0:02:47]} 8. Nxc4 {[%clk 0:03:00]}  b5 {[%clk 0:02:47]} 9. Nce5 {[%clk 0:02:59]}  Bd5 {[%clk 0:02:45]} 10. Ng5 {[%clk 0:02:58]}  Bxg2 {[%clk 0:02:31]} 11. Kxg2 {[%clk 0:02:56]}  Qd5+ {[%clk 0:02:20]} 12. f3 {[%clk 0:02:53]}  Nbd7 {[%clk 0:02:18]} 13. e4 {[%clk 0:02:45]}  Qb7 {[%clk 0:02:17]} 14. Nexf7 {[%clk 0:02:34]}  Rg8 {[%clk 0:02:16]} 15. Qb3 {[%clk 0:02:34]}  Qb6 {[%clk 0:02:06]} 16. Ne5 {[%clk 0:01:37]}  Qxd4 {[%clk 0:01:53]} 17. Qxe6+ {[%clk 0:01:35]} 1-0


[Site "https://www.chess.com"]

[Event "Titled Tuesday Blitz March 01 Early 2022"]
[White "Dziththauly, Ramadhan"]
[Black "Moskvin, Anatoly"]
[WhiteFideId "7105525"]
[BlackFideId "24199990"]
[WhiteElo "2586"]
[BlackElo "2079"]
[Result "1-0"]
[Round "04"]
[TimeControl "180+1"]
[Date "2022.03.01"]
[WhiteClock "0:00:19"]
[BlackClock "0:00:05"]

1. d4 {[%clk 0:03:00]}  Nf6 {[%clk 0:02:58]} 2. c4 {[%clk 0:03:01]}  c5 {[%clk 0:02:58]} 3. d5 {[%clk 0:03:01]}  b5 {[%clk 0:02:59]} 4. cxb5 {[%clk 0:03:02]}  a6 {[%clk 0:02:59]} 5. bxa6 {[%clk 0:03:02]}  Bxa6 {[%clk 0:03:00]} 6. Nc3 {[%clk 0:03:03]}  g6 {[%clk 0:03:01]} 7. e4 {[%clk 0:03:03]}  Bxf1 {[%clk 0:03:02]} 8. Kxf1 {[%clk 0:03:04]}  d6 {[%clk 0:03:03]} 9. Nf3 {[%clk 0:03:04]}  Bg7 {[%clk 0:03:03]} 10. g3 {[%clk 0:03:05]}  O-O {[%clk 0:03:04]} 11. Kg2 {[%clk 0:03:05]}  Nbd7 {[%clk 0:03:05]} 12. a4 {[%clk 0:03:05]}  Qb6 {[%clk 0:03:04]} 13. Bd2 {[%clk 0:03:05]}  Rfb8 {[%clk 0:02:39]} 14. Qe2 {[%clk 0:03:04]}  Qb3 {[%clk 0:02:15]} 15. Rhb1 {[%clk 0:02:57]}  Nb6 {[%clk 0:02:03]} 16. Ra3 {[%clk 0:02:16]}  Qc4 {[%clk 0:02:02]} 17. Qe1 {[%clk 0:02:06]}  Ng4 {[%clk 0:01:31]} 18. Rc1 {[%clk 0:01:32]}  Qa6 {[%clk 0:01:03]} 19. b3 {[%clk 0:01:27]}  c4 {[%clk 0:00:55]} 20. b4 {[%clk 0:01:20]}  Nd7 {[%clk 0:00:07]} 21. b5 {[%clk 0:00:47]}  Qb7 {[%clk 0:00:07]} 22. a5 {[%clk 0:00:46]}  Nge5 {[%clk 0:00:06]} 23. Nxe5 {[%clk 0:00:44]}  Nxe5 {[%clk 0:00:07]} 24. Rb1 {[%clk 0:00:43]}  Nd3 {[%clk 0:00:06]} 25. Qe3 {[%clk 0:00:43]}  Qd7 {[%clk 0:00:05]} 26. b6 {[%clk 0:00:39]}  Nc5 {[%clk 0:00:03]} 27. Nb5 {[%clk 0:00:36]}  h5 {[%clk 0:00:03]} 28. Bc3 {[%clk 0:00:36]}  Rb7 {[%clk 0:00:03]} 29. Bxg7 {[%clk 0:00:35]}  Kxg7 {[%clk 0:00:03]} 30. Qc3+ {[%clk 0:00:33]}  f6 {[%clk 0:00:04]} 31. Qxc4 {[%clk 0:00:33]}  f5 {[%clk 0:00:03]} 32. Qd4+ {[%clk 0:00:31]}  Kh7 {[%clk 0:00:03]} 33. e5 {[%clk 0:00:32]}  Ne4 {[%clk 0:00:02]} 34. f3 {[%clk 0:00:22]}  Ng5 {[%clk 0:00:02]} 35. h4 {[%clk 0:00:21]}  dxe5 {[%clk 0:00:01]} 36. Qxe5 {[%clk 0:00:22]}  Nf7 {[%clk 0:00:02]} 37. Qe6 {[%clk 0:00:22]}  Qxe6 {[%clk 0:00:02]} 38. dxe6 {[%clk 0:00:23]}  Nd8 {[%clk 0:00:03]} 39. Nc7 {[%clk 0:00:20]}  Rxc7 {[%clk 0:00:01]} 40. bxc7 {[%clk 0:00:20]}  Nxe6 {[%clk 0:00:02]} 41. Rb8 {[%clk 0:00:20]}  Nxc7 {[%clk 0:00:03]} 42. Rxa8 {[%clk 0:00:20]}  Nxa8 {[%clk 0:00:04]} 43. Rc3 {[%clk 0:00:20]}  Nc7 {[%clk 0:00:05]} 44. Rxc7 {[%clk 0:00:19]} 1-0


[Site "https://www.chess.com"]

[Event "Titled Tuesday Blitz March 01 Early 2022"]
[White "Escudero Donoso, Felipe"]
[Black "Bambino Filho, Antonio Carlos"]
[WhiteFideId "3410595"]
[BlackFideId "2113163"]
[WhiteElo "2184"]
[BlackElo "2446"]
[Result "0-1"]
[Round "04"]
[TimeControl "180+1"]
[Date "2022.03.01"]
[WhiteClock "0:00:01"]
[BlackClock "0:00:20"]

1. Nf3 {[%clk 0:03:00]}  c5 {[%clk 0:02:59]} 2. c4 {[%clk 0:03:01]}  Nc6 {[%clk 0:02:59]} 3. Nc3 {[%clk 0:03:00]}  g6 {[%clk 0:03:00]} 4. e3 {[%clk 0:03:01]}  Bg7 {[%clk 0:03:00]} 5. d4 {[%clk 0:03:01]}  d6 {[%clk 0:03:00]} 6. d5 {[%clk 0:02:57]}  Ne5 {[%clk 0:03:01]} 7. Nxe5 {[%clk 0:02:57]}  Bxe5 {[%clk 0:03:01]} 8. Bd3 {[%clk 0:02:56]}  Nf6 {[%clk 0:02:51]} 9. h3 {[%clk 0:02:55]}  O-O {[%clk 0:02:50]} 10. O-O {[%clk 0:02:53]}  e6 {[%clk 0:02:45]} 11. f4 {[%clk 0:02:44]}  Bxc3 {[%clk 0:02:44]} 12. bxc3 {[%clk 0:02:45]}  b6 {[%clk 0:02:36]} 13. e4 {[%clk 0:02:39]}  exd5 {[%clk 0:02:36]} 14. cxd5 {[%clk 0:02:35]}  c4 {[%clk 0:02:34]} 15. Bc2 {[%clk 0:02:26]}  Re8 {[%clk 0:02:35]} 16. Qd4 {[%clk 0:02:23]}  Qe7 {[%clk 0:02:25]} 17. Re1 {[%clk 0:02:20]}  Bb7 {[%clk 0:02:25]} 18. Ba3 {[%clk 0:02:13]}  Rac8 {[%clk 0:02:21]} 19. Rad1 {[%clk 0:02:02]}  Nh5 {[%clk 0:02:15]} 20. e5 {[%clk 0:01:37]}  dxe5 {[%clk 0:02:09]} 21. Bxe7 {[%clk 0:01:19]}  exd4 {[%clk 0:02:09]} 22. Rxd4 {[%clk 0:01:15]}  Nf6 {[%clk 0:01:39]} 23. d6 {[%clk 0:01:15]}  Nd7 {[%clk 0:01:38]} 24. Ba4 {[%clk 0:01:12]}  Bc6 {[%clk 0:01:38]} 25. Rxc4 {[%clk 0:01:06]}  b5 {[%clk 0:01:32]} 26. Rxc6 {[%clk 0:01:01]}  Rxc6 {[%clk 0:01:33]} 27. Bxb5 {[%clk 0:01:02]}  Rxd6 {[%clk 0:01:33]} 28. Bxd6 {[%clk 0:00:28]}  Rxe1+ {[%clk 0:01:33]} 29. Kf2 {[%clk 0:00:29]}  Rd1 {[%clk 0:01:28]} 30. Bb8 {[%clk 0:00:22]}  Nf6 {[%clk 0:01:23]} 31. Bxa7 {[%clk 0:00:20]}  Ne4+ {[%clk 0:01:22]} 32. Kf3 {[%clk 0:00:17]}  Nxc3 {[%clk 0:01:20]} 33. Bc4 {[%clk 0:00:18]}  Nxa2 {[%clk 0:00:49]} 34. Bf2 {[%clk 0:00:10]}  Nc3 {[%clk 0:00:44]} 35. Bb3 {[%clk 0:00:10]}  Rb1 {[%clk 0:00:43]} 36. Bc2 {[%clk 0:00:09]}  Rb2 {[%clk 0:00:42]} 37. Bd3 {[%clk 0:00:10]}  Nd5 {[%clk 0:00:31]} 38. Bd4 {[%clk 0:00:09]}  Rb4 {[%clk 0:00:28]} 39. Ke4 {[%clk 0:00:05]}  Nxf4 {[%clk 0:00:20]} 40. Bf1 {[%clk 0:00:03]}  Ne6 {[%clk 0:00:20]} 41. Ke5 {[%clk 0:00:01]}  Rxd4 {[%clk 0:00:20]} 42. Kf6 {[%clk 0:00:01]}  Rd2 {[%clk 0:00:20]} 0-1


[Site "https://www.chess.com"]

[Event "Titled Tuesday Blitz March 01 Early 2022"]
[White "Estrada Nieto, Julian"]
[Black "Alfaro, William"]
[WhiteFideId "5101018"]
[BlackFideId "6100457"]
[WhiteElo "2246"]
[BlackElo "2066"]
[Result "1/2-1/2"]
[Round "04"]
[TimeControl "180+1"]
[Date "2022.03.01"]
[WhiteClock "0:00:02"]
[BlackClock "0:01:09"]

1. e4 {[%clk 0:03:00]}  c5 {[%clk 0:02:58]} 2. Nf3 {[%clk 0:03:00]}  Nc6 {[%clk 0:02:58]} 3. Bb5 {[%clk 0:03:00]}  e6 {[%clk 0:02:58]} 4. O-O {[%clk 0:02:59]}  Nge7 {[%clk 0:02:56]} 5. Re1 {[%clk 0:02:59]}  g6 {[%clk 0:02:51]} 6. c3 {[%clk 0:02:49]}  Bg7 {[%clk 0:02:51]} 7. d4 {[%clk 0:02:49]}  cxd4 {[%clk 0:02:46]} 8. cxd4 {[%clk 0:02:49]}  d5 {[%clk 0:02:45]} 9. e5 {[%clk 0:02:37]}  O-O {[%clk 0:02:44]} 10. Nc3 {[%clk 0:02:32]}  Bd7 {[%clk 0:02:42]} 11. Bf4 {[%clk 0:02:19]}  h6 {[%clk 0:02:39]} 12. h3 {[%clk 0:02:05]}  Qb6 {[%clk 0:02:32]} 13. Bxc6 {[%clk 0:01:44]}  Bxc6 {[%clk 0:02:27]} 14. Qd2 {[%clk 0:01:43]}  g5 {[%clk 0:02:26]} 15. Bh2 {[%clk 0:01:28]}  Ng6 {[%clk 0:02:24]} 16. Ne2 {[%clk 0:01:27]}  Bb5 {[%clk 0:02:21]} 17. Ng3 {[%clk 0:01:26]}  Nf4 {[%clk 0:02:20]} 18. Nf1 {[%clk 0:01:18]}  Nd3 {[%clk 0:02:13]} 19. Re3 {[%clk 0:01:14]}  Nf4 {[%clk 0:02:09]} 20. Bxf4 {[%clk 0:01:11]}  gxf4 {[%clk 0:02:10]} 21. Rb3 {[%clk 0:01:11]}  Qc6 {[%clk 0:02:01]} 22. Rc1 {[%clk 0:01:06]}  Qd7 {[%clk 0:02:01]} 23. Qxf4 {[%clk 0:01:05]}  f6 {[%clk 0:02:01]} 24. exf6 {[%clk 0:00:51]}  Rxf6 {[%clk 0:02:01]} 25. Qg4 {[%clk 0:00:49]}  Be2 {[%clk 0:01:58]} 26. Ng3 {[%clk 0:00:44]}  Bxf3 {[%clk 0:01:58]} 27. Rxf3 {[%clk 0:00:45]}  Rxf3 {[%clk 0:01:53]} 28. Qxf3 {[%clk 0:00:45]}  Rf8 {[%clk 0:01:47]} 29. Qg4 {[%clk 0:00:44]}  Qf7 {[%clk 0:01:46]} 30. Kh2 {[%clk 0:00:32]}  Kh8 {[%clk 0:01:43]} 31. Nh5 {[%clk 0:00:30]}  Rg8 {[%clk 0:01:42]} 32. Nxg7 {[%clk 0:00:27]}  Rxg7 {[%clk 0:01:43]} 33. Rc8+ {[%clk 0:00:25]}  Kh7 {[%clk 0:01:43]} 34. Qf3 {[%clk 0:00:23]}  Qxf3 {[%clk 0:01:43]} 35. gxf3 {[%clk 0:00:22]}  Kg6 {[%clk 0:01:44]} 36. Re8 {[%clk 0:00:19]}  Kf7 {[%clk 0:01:41]} 37. Rb8 {[%clk 0:00:18]}  Kf6 {[%clk 0:01:41]} 38. Rf8+ {[%clk 0:00:16]}  Kg5 {[%clk 0:01:38]} 39. Kg3 {[%clk 0:00:15]}  a6 {[%clk 0:01:35]} 40. a4 {[%clk 0:00:12]}  Kg6 {[%clk 0:01:29]} 41. Kf4 {[%clk 0:00:11]}  Rc7 {[%clk 0:01:25]} 42. Ke5 {[%clk 0:00:10]}  Rc6 {[%clk 0:01:24]} 43. h4 {[%clk 0:00:08]}  Kg7 {[%clk 0:01:17]} 44. Rf6 {[%clk 0:00:07]}  Rc2 {[%clk 0:01:13]} 45. Rxe6 {[%clk 0:00:08]}  Rxb2 {[%clk 0:01:12]} 46. Kxd5 {[%clk 0:00:06]}  Kf7 {[%clk 0:01:11]} 47. Rxh6 {[%clk 0:00:04]}  b5 {[%clk 0:01:12]} 48. axb5 {[%clk 0:00:03]}  Rxb5+ {[%clk 0:01:11]} 49. Ke4 {[%clk 0:00:03]}  a5 {[%clk 0:01:12]} 50. Ra6 {[%clk 0:00:03]}  Rh5 {[%clk 0:01:11]} 51. f4 {[%clk 0:00:02]}  Ke7 {[%clk 0:01:11]} 52. f5 {[%clk 0:00:01]}  Rxh4+ {[%clk 0:01:11]} 53. Ke5 {[%clk 0:00:01]}  Rh2 {[%clk 0:01:11]} 54. f4 {[%clk 0:00:01]}  Re2+ {[%clk 0:01:10]} 55. Kd5 {[%clk 0:00:01]}  Ra2 {[%clk 0:01:09]} 56. f6+ {[%clk 0:00:01]}  Kf7 {[%clk 0:01:09]} 57. f5 {[%clk 0:00:02]}  a4 {[%clk 0:01:09]} 58. Kc4 {[%clk 0:00:01]}  a3 {[%clk 0:01:06]} 59. Kb4 {[%clk 0:00:02]}  Rd2 {[%clk 0:01:07]} 60. Rxa3 {[%clk 0:00:01]}  Rxd4+ {[%clk 0:01:07]} 61. Kc5 {[%clk 0:00:02]}  Rf4 {[%clk 0:01:07]} 62. Ra6 {[%clk 0:00:02]}  Rxf5+ {[%clk 0:01:07]} 63. Kd4 {[%clk 0:00:02]}  Rxf6 {[%clk 0:01:08]} 64. Rxf6+ {[%clk 0:00:02]}  Kxf6 {[%clk 0:01:09]} 1/2-1/2


[Site "https://www.chess.com"]

[Event "Titled Tuesday Blitz March 01 Early 2022"]
[White "Eynullayev, Atilla"]
[Black "Kozak, Adam"]
[WhiteFideId "13413570"]
[BlackFideId "753246"]
[WhiteElo "1979"]
[BlackElo "2459"]
[Result "1-0"]
[Round "04"]
[TimeControl "180+1"]
[Date "2022.03.01"]
[WhiteClock "0:00:15"]
[BlackClock "0:00:08"]

1. e4 {[%clk 0:03:00]}  c6 {[%clk 0:02:53]} 2. d4 {[%clk 0:03:00]}  d5 {[%clk 0:02:48]} 3. e5 {[%clk 0:03:00]}  c5 {[%clk 0:02:48]} 4. dxc5 {[%clk 0:03:00]}  e6 {[%clk 0:02:48]} 5. a3 {[%clk 0:03:00]}  Bxc5 {[%clk 0:02:47]} 6. Nf3 {[%clk 0:03:00]}  Ne7 {[%clk 0:02:47]} 7. Bd3 {[%clk 0:02:59]}  Nbc6 {[%clk 0:02:47]} 8. b4 {[%clk 0:02:58]}  Bb6 {[%clk 0:02:46]} 9. O-O {[%clk 0:02:54]}  a5 {[%clk 0:02:45]} 10. b5 {[%clk 0:02:53]}  Nd4 {[%clk 0:02:46]} 11. Nbd2 {[%clk 0:02:32]}  Bd7 {[%clk 0:02:45]} 12. a4 {[%clk 0:02:28]}  Rc8 {[%clk 0:02:43]} 13. Rb1 {[%clk 0:02:21]}  Qc7 {[%clk 0:02:41]} 14. Nxd4 {[%clk 0:02:20]}  Bxd4 {[%clk 0:02:39]} 15. Nf3 {[%clk 0:02:12]}  Bxe5 {[%clk 0:02:38]} 16. Nxe5 {[%clk 0:01:55]}  Qxe5 {[%clk 0:02:36]} 17. Bb2 {[%clk 0:01:51]}  Qg5 {[%clk 0:02:35]} 18. f4 {[%clk 0:01:47]}  Qh6 {[%clk 0:02:34]} 19. Qd2 {[%clk 0:01:34]}  b6 {[%clk 0:02:32]} 20. Rf3 {[%clk 0:01:34]}  d4 {[%clk 0:01:46]} 21. Bxd4 {[%clk 0:01:28]}  Qh5 {[%clk 0:01:46]} 22. Bxb6 {[%clk 0:01:24]}  Nd5 {[%clk 0:01:37]} 23. Bf2 {[%clk 0:01:20]}  f6 {[%clk 0:01:36]} 24. c4 {[%clk 0:01:15]}  Nb4 {[%clk 0:01:36]} 25. Rxb4 {[%clk 0:01:05]}  axb4 {[%clk 0:01:35]} 26. Qxb4 {[%clk 0:01:06]}  Qf7 {[%clk 0:01:20]} 27. a5 {[%clk 0:01:03]}  Rb8 {[%clk 0:01:05]} 28. Qd6 {[%clk 0:00:49]}  Rd8 {[%clk 0:01:03]} 29. Bb6 {[%clk 0:00:45]}  Rc8 {[%clk 0:01:02]} 30. Bc5 {[%clk 0:00:33]}  Rd8 {[%clk 0:00:58]} 31. Qb6 {[%clk 0:00:20]}  Bc8 {[%clk 0:00:45]} 32. Be4 {[%clk 0:00:21]}  Bd7 {[%clk 0:00:24]} 33. a6 {[%clk 0:00:20]}  f5 {[%clk 0:00:24]} 34. Bb7 {[%clk 0:00:19]}  e5 {[%clk 0:00:24]} 35. Bd5 {[%clk 0:00:18]}  Qh5 {[%clk 0:00:19]} 36. a7 {[%clk 0:00:17]}  e4 {[%clk 0:00:18]} 37. Rf1 {[%clk 0:00:17]}  Qh4 {[%clk 0:00:10]} 38. a8=Q {[%clk 0:00:15]}  Rxa8 {[%clk 0:00:11]} 39. Bxa8 {[%clk 0:00:16]}  h5 {[%clk 0:00:11]} 40. Qb8+ {[%clk 0:00:15]}  Qd8 {[%clk 0:00:07]} 41. Qxd8+ {[%clk 0:00:15]}  Kxd8 {[%clk 0:00:08]} 42. Bd5 {[%clk 0:00:15]}  Kc7 {[%clk 0:00:08]} 43. b6+ {[%clk 0:00:15]}  Kb8 {[%clk 0:00:08]} 44. Ra1 {[%clk 0:00:15]}  Bb5 {[%clk 0:00:08]} 45. Ra8# {[%clk 0:00:15]} 1-0


[Site "https://www.chess.com"]

[Event "Titled Tuesday Blitz March 01 Early 2022"]
[White "FGHSMN"]
[Black "Rodchenkov, Sergey D."]
[BlackFideId "4168712"]
[WhiteElo "2690"]
[BlackElo "2306"]
[Result "1-0"]
[Round "04"]
[TimeControl "180+1"]
[Date "2022.03.01"]
[WhiteClock "0:01:37"]
[BlackClock "0:00:04"]

1. d4 {[%clk 0:02:59]}  d5 {[%clk 0:02:59]} 2. Nf3 {[%clk 0:02:56]}  Nf6 {[%clk 0:02:59]} 3. c3 {[%clk 0:02:56]}  c6 {[%clk 0:02:45]} 4. Qc2 {[%clk 0:02:55]}  g6 {[%clk 0:02:42]} 5. Bf4 {[%clk 0:02:54]}  Bf5 {[%clk 0:02:35]} 6. Qb3 {[%clk 0:02:52]}  Qb6 {[%clk 0:02:35]} 7. Nbd2 {[%clk 0:02:52]}  Nbd7 {[%clk 0:02:32]} 8. c4 {[%clk 0:02:47]}  e6 {[%clk 0:02:22]} 9. c5 {[%clk 0:02:44]}  Qxb3 {[%clk 0:02:17]} 10. axb3 {[%clk 0:02:45]}  a6 {[%clk 0:02:15]} 11. h3 {[%clk 0:02:43]}  h5 {[%clk 0:02:11]} 12. e3 {[%clk 0:02:41]}  Ne4 {[%clk 0:02:06]} 13. b4 {[%clk 0:02:39]}  Bg7 {[%clk 0:01:56]} 14. b5 {[%clk 0:02:37]}  Nxd2 {[%clk 0:01:36]} 15. Kxd2 {[%clk 0:02:35]}  a5 {[%clk 0:01:25]} 16. b6 {[%clk 0:02:09]}  Be4 {[%clk 0:01:20]} 17. Bd6 {[%clk 0:02:05]}  Bxf3 {[%clk 0:01:11]} 18. gxf3 {[%clk 0:02:06]}  e5 {[%clk 0:01:11]} 19. Kd3 {[%clk 0:02:04]}  Bf8 {[%clk 0:01:04]} 20. Bc7 {[%clk 0:02:02]}  f5 {[%clk 0:00:57]} 21. Be2 {[%clk 0:02:01]}  Kf7 {[%clk 0:00:42]} 22. Ra2 {[%clk 0:01:49]}  exd4 {[%clk 0:00:21]} 23. exd4 {[%clk 0:01:46]}  a4 {[%clk 0:00:16]} 24. Rha1 {[%clk 0:01:46]}  Be7 {[%clk 0:00:16]} 25. Bd1 {[%clk 0:01:43]}  Rhe8 {[%clk 0:00:12]} 26. Bxa4 {[%clk 0:01:42]}  Bf6 {[%clk 0:00:08]} 27. Bxc6 {[%clk 0:01:41]}  Rxa2 {[%clk 0:00:03]} 28. Bxd5+ {[%clk 0:01:42]}  Kg7 {[%clk 0:00:03]} 29. Rxa2 {[%clk 0:01:42]}  Re7 {[%clk 0:00:03]} 30. Bxb7 {[%clk 0:01:40]}  Nf8 {[%clk 0:00:03]} 31. Bd5 {[%clk 0:01:38]}  Re1 {[%clk 0:00:03]} 32. b7 {[%clk 0:01:37]}  Rd1+ {[%clk 0:00:03]} 33. Ke2 {[%clk 0:01:37]}  Rc1 {[%clk 0:00:04]} 1-0


[Site "https://www.chess.com"]

[Event "Titled Tuesday Blitz March 01 Early 2022"]
[White "Gaehwiler, Gabriel"]
[Black "Zheenbekov, Nurgazy"]
[WhiteFideId "1314530"]
[BlackFideId "13800485"]
[WhiteElo "2383"]
[BlackElo "1959"]
[Result "0-1"]
[Round "04"]
[TimeControl "180+1"]
[Date "2022.03.01"]
[WhiteClock "0:00:38"]
[BlackClock "0:01:19"]

1. d4 {[%clk 0:03:00]}  d5 {[%clk 0:02:57]} 2. Nf3 {[%clk 0:03:01]}  Nf6 {[%clk 0:02:57]} 3. c4 {[%clk 0:03:02]}  e6 {[%clk 0:02:57]} 4. Nbd2 {[%clk 0:03:02]}  Be7 {[%clk 0:02:55]} 5. g3 {[%clk 0:03:03]}  O-O {[%clk 0:02:55]} 6. Qc2 {[%clk 0:03:04]}  b6 {[%clk 0:02:52]} 7. Bg2 {[%clk 0:03:05]}  Bb7 {[%clk 0:02:52]} 8. O-O {[%clk 0:03:05]}  Nbd7 {[%clk 0:02:52]} 9. Rd1 {[%clk 0:03:05]}  dxc4 {[%clk 0:02:46]} 10. Nxc4 {[%clk 0:03:06]}  Be4 {[%clk 0:02:44]} 11. Qb3 {[%clk 0:03:05]}  c5 {[%clk 0:02:42]} 12. Bf4 {[%clk 0:03:03]}  cxd4 {[%clk 0:02:36]} 13. Nxd4 {[%clk 0:03:04]}  Nc5 {[%clk 0:02:35]} 14. Qb5 {[%clk 0:02:56]}  Bxg2 {[%clk 0:02:29]} 15. Kxg2 {[%clk 0:02:50]}  Qd5+ {[%clk 0:02:28]} 16. f3 {[%clk 0:02:36]}  a6 {[%clk 0:02:19]} 17. Qxb6 {[%clk 0:02:13]}  Qxc4 {[%clk 0:02:06]} 18. b3 {[%clk 0:01:56]}  Nd5 {[%clk 0:01:50]} 19. Qc6 {[%clk 0:00:58]}  Qb4 {[%clk 0:01:44]} 20. Nc2 {[%clk 0:00:41]}  Nxf4+ {[%clk 0:01:30]} 21. gxf4 {[%clk 0:00:40]}  Qxf4 {[%clk 0:01:30]} 22. Rd4 {[%clk 0:00:40]}  Qf6 {[%clk 0:01:22]} 23. Rad1 {[%clk 0:00:38]}  Qg6+ {[%clk 0:01:19]} 24. Rg4 {[%clk 0:00:38]}  Qxc2 {[%clk 0:01:19]} 0-1


[Site "https://www.chess.com"]

[Event "Titled Tuesday Blitz March 01 Early 2022"]
[White "Gatterer, Florian"]
[Black "Romanchuk, Viktor"]
[WhiteFideId "811688"]
[BlackFideId "14109271"]
[WhiteElo "2218"]
[BlackElo "2242"]
[Result "1/2-1/2"]
[Round "04"]
[TimeControl "180+1"]
[Date "2022.03.01"]
[WhiteClock "0:02:17"]
[BlackClock "0:02:33"]

1. e4 {[%clk 0:03:00]}  e6 {[%clk 0:03:00]} 2. d4 {[%clk 0:02:58]}  d5 {[%clk 0:03:00]} 3. Nc3 {[%clk 0:02:58]}  dxe4 {[%clk 0:02:59]} 4. Nxe4 {[%clk 0:02:58]}  Nd7 {[%clk 0:03:00]} 5. Nf3 {[%clk 0:02:57]}  Ngf6 {[%clk 0:03:01]} 6. Nxf6+ {[%clk 0:02:57]}  Nxf6 {[%clk 0:03:02]} 7. Be3 {[%clk 0:02:56]}  Nd5 {[%clk 0:03:00]} 8. Qd2 {[%clk 0:02:56]}  Bb4 {[%clk 0:02:58]} 9. c3 {[%clk 0:02:54]}  Bd6 {[%clk 0:02:58]} 10. Bb5+ {[%clk 0:02:51]}  Bd7 {[%clk 0:02:58]} 11. Bd3 {[%clk 0:02:50]}  Qe7 {[%clk 0:02:57]} 12. O-O-O {[%clk 0:02:49]}  O-O-O {[%clk 0:02:53]} 13. Kb1 {[%clk 0:02:49]}  Nxe3 {[%clk 0:02:49]} 14. Qxe3 {[%clk 0:02:40]}  Bc6 {[%clk 0:02:43]} 15. Rhe1 {[%clk 0:02:39]}  Bxf3 {[%clk 0:02:40]} 16. Qxf3 {[%clk 0:02:38]}  Qf6 {[%clk 0:02:40]} 17. Qe2 {[%clk 0:02:29]}  c6 {[%clk 0:02:36]} 18. g3 {[%clk 0:02:29]}  Bc7 {[%clk 0:02:33]} 19. f4 {[%clk 0:02:17]} 1/2-1/2


[Site "https://www.chess.com"]

[Event "Titled Tuesday Blitz March 01 Early 2022"]
[White "Gerbelli Neto, Eduardo"]
[Black "Kuzmin, Roman"]
[WhiteFideId "2103281"]
[BlackFideId "44134932"]
[WhiteElo "2178"]
[BlackElo "1978"]
[Result "0-1"]
[Round "04"]
[TimeControl "180+1"]
[Date "2022.03.01"]
[WhiteClock "0:00:13"]
[BlackClock "0:00:08"]

1. e4 {[%clk 0:03:00]}  c5 {[%clk 0:02:59]} 2. Nc3 {[%clk 0:03:00]}  e6 {[%clk 0:02:53]} 3. f4 {[%clk 0:03:01]}  Nc6 {[%clk 0:02:51]} 4. Nf3 {[%clk 0:03:01]}  d6 {[%clk 0:02:48]} 5. Bb5 {[%clk 0:02:56]}  Bd7 {[%clk 0:02:47]} 6. d3 {[%clk 0:02:55]}  a6 {[%clk 0:02:47]} 7. Bxc6 {[%clk 0:02:55]}  Bxc6 {[%clk 0:02:48]} 8. O-O {[%clk 0:02:56]}  Be7 {[%clk 0:02:45]} 9. Qe2 {[%clk 0:02:56]}  Nf6 {[%clk 0:02:45]} 10. e5 {[%clk 0:02:46]}  Nd7 {[%clk 0:02:44]} 11. exd6 {[%clk 0:02:42]}  Bxd6 {[%clk 0:02:45]} 12. Ne4 {[%clk 0:02:43]}  Be7 {[%clk 0:02:40]} 13. c4 {[%clk 0:02:41]}  h6 {[%clk 0:02:25]} 14. b3 {[%clk 0:02:36]}  Qc7 {[%clk 0:02:15]} 15. Bb2 {[%clk 0:02:27]}  Rg8 {[%clk 0:01:47]} 16. Ne5 {[%clk 0:02:22]}  Nxe5 {[%clk 0:01:47]} 17. Bxe5 {[%clk 0:02:20]}  Qd7 {[%clk 0:01:47]} 18. f5 {[%clk 0:01:58]}  O-O-O {[%clk 0:01:40]} 19. fxe6 {[%clk 0:01:46]}  Qxe6 {[%clk 0:01:37]} 20. Bc3 {[%clk 0:01:06]}  f5 {[%clk 0:01:10]} 21. Ng3 {[%clk 0:01:05]}  Qxe2 {[%clk 0:01:09]} 22. Nxe2 {[%clk 0:01:06]}  Rxd3 {[%clk 0:00:54]} 23. Rxf5 {[%clk 0:00:59]}  Bg5 {[%clk 0:00:53]} 24. Raf1 {[%clk 0:00:45]}  Re8 {[%clk 0:00:35]} 25. Rf8 {[%clk 0:00:40]}  Be3+ {[%clk 0:00:25]} 26. Kh1 {[%clk 0:00:40]}  Rxf8 {[%clk 0:00:21]} 27. Rxf8+ {[%clk 0:00:41]}  Kd7 {[%clk 0:00:18]} 28. h4 {[%clk 0:00:35]}  g5 {[%clk 0:00:15]} 29. hxg5 {[%clk 0:00:35]}  hxg5 {[%clk 0:00:16]} 30. Be5 {[%clk 0:00:24]}  Ke7 {[%clk 0:00:16]} 31. Rf1 {[%clk 0:00:21]}  Rd2 {[%clk 0:00:16]} 32. Bf6+ {[%clk 0:00:16]}  Ke8 {[%clk 0:00:13]} 33. Re1 {[%clk 0:00:14]}  Kf7 {[%clk 0:00:13]} 34. Bc3 {[%clk 0:00:13]}  Rc2 {[%clk 0:00:12]} 35. Kh2 {[%clk 0:00:11]}  Bf2 {[%clk 0:00:09]} 36. Rf1 {[%clk 0:00:12]}  Rxe2 {[%clk 0:00:09]} 37. Be1 {[%clk 0:00:12]}  Rxe1 {[%clk 0:00:09]} 38. Rxf2+ {[%clk 0:00:12]}  Kg6 {[%clk 0:00:09]} 39. Rd2 {[%clk 0:00:12]}  Re5 {[%clk 0:00:08]} 40. Kg3 {[%clk 0:00:13]}  Re1 {[%clk 0:00:07]} 41. Rd6+ {[%clk 0:00:12]}  Kf5 {[%clk 0:00:06]} 42. Rd2 {[%clk 0:00:13]}  Rg1 {[%clk 0:00:06]} 43. Kh2 {[%clk 0:00:12]}  Rxg2+ {[%clk 0:00:06]} 44. Rxg2 {[%clk 0:00:12]}  Bxg2 {[%clk 0:00:07]} 45. Kxg2 {[%clk 0:00:13]}  Ke4 {[%clk 0:00:08]} 0-1


[Site "https://www.chess.com"]